fUST/lending_fUST_20240607
["ID","MTS","AMOUNT","RATE_DAILY","PERIOD"]
[328723304,1717731043935,-500.0,0.00024657,2]
[328723305,1717731043945,-528.18229709,0.00024657,2]
[328723306,1717731043955,-500.0,0.00024657,2]
[328723307,1717731043965,-500.0,0.00024657,2]
[328723308,1717731043975,-500.0,0.00024657,2]
[328723309,1717731043984,-508.38078547,0.00024657,2]
[328723310,1717731043995,-516.74917005,0.00024657,2]
[328723311,1717731044004,-500.0,0.00024657,2]
[328723312,1717731044015,-491.5058594,0.00024657,2]
[328723313,1717731044024,-500.0,0.00024657,2]
[328723314,1717731044034,-501.59016841,0.00024657,2]
[328723315,1717731044043,-403.11362997,0.00024657,2]
[328723316,1717731044053,-535.03014982,0.00024657,2]
[328723317,1717731044063,-500.0,0.00024657,2]
[328723318,1717731044072,-500.0,0.00024657,2]
[328723319,1717731044082,-500.0,0.00024657,2]
[328723320,1717731044091,-151.0,0.00024657,2]
[328723321,1717731044100,-500.0,0.00024657,2]
[328723322,1717731044110,-500.0,0.00024657,2]
[328723323,1717731044119,-205.295265,0.00024657,2]
[328723324,1717731044129,-205.295265,0.00024657,2]
[328723325,1717731044138,-205.295265,0.00024657,2]
[328723326,1717731044148,-205.295265,0.00024657,2]
[328723327,1717731044158,-937.64,0.00024657,2]
[328723328,1717731044168,-205.295265,0.00024657,2]
[328723329,1717731044177,-205.295265,0.00024657,2]
[328723330,1717731044187,-205.295265,0.00024657,2]
[328723332,1717731044196,-205.295265,0.00024657,2]
[328723334,1717731044207,-500.0,0.00024657,2]
[328723335,1717731044216,-500.0,0.00024657,2]
[328723337,1717731044225,-500.0,0.00024657,2]
[328723338,1717731044234,-500.0,0.00024657,2]
[328723339,1717731044243,-500.0,0.00024657,2]
[328723340,1717731044252,-500.0,0.00024657,2]
[328723341,1717731044262,-500.0,0.00024657,2]
[328723342,1717731044271,-500.0,0.00024657,2]
[328723343,1717731044280,-254.95172717,0.00024657,2]
[328723344,1717731044527,-0.00129264,0.00024626,2]
[328723350,1717731192514,1281.50835311,9.999e-05,2]
[328723351,1717731222307,837.83743989,9.999e-05,2]
[328723352,1717731232578,303.15870369,9.999e-05,2]
[328723353,1717731235526,1342.59061452,9.999e-05,2]
[328723354,1717731237775,1155.40031062,9.999e-05,2]
[328723355,1717731240004,515.43295454,9.999e-05,2]
[328723357,1717731399135,524.19655516,9.999e-05,2]
[328723358,1717731402668,164.57151092,9.999e-05,2]
[328723360,1717732037177,-150.0,0.000215,2]
[328723361,1717732037199,-169.76297466,0.00022557,2]
[328723362,1717732037220,-219.221086,0.00023528,2]
[328723363,1717732037241,-156.5738761,0.0002438,2]
[328723364,1717732037262,-166.666666,0.00024493,2]
[328723365,1717732037283,-7916.02523066,0.00024504,2]
[328723366,1717732037304,-2223.28885711,0.00024505,2]
[328723449,1717732232820,-150.0,0.00022405,2]
[328723451,1717732232830,-178.98493435,0.00023591,2]
[328723616,1717732238628,-40.23615255,0.00023591,2]
[328723618,1717732238638,-252.27184567,0.00024044,2]
[328723620,1717732238649,-2889.08100643,0.00024168,2]
[328723622,1717732238659,-4160.39341082,0.00024544,2]
[328723697,1717732241969,-1700.09320338,0.00024544,2]
[328723698,1717732241982,-4548.66339765,0.00024544,2]
[328723699,1717732241993,-153.0,0.00024548,2]
[328723700,1717732242003,-153.0,0.00024548,2]
[328723701,1717732242012,-306.0,0.00024548,2]
[328723702,1717732242022,-153.0,0.00024548,2]
[328723703,1717732242032,-278.77140759,0.00024556,2]
[328723704,1717732242042,-270.0,0.000246,2]
[328723705,1717732242054,-153.0,0.000246,2]
[328723706,1717732242064,-278.77140759,0.00024612,2]
[328723707,1717732242074,-2889.08100643,0.00024633,2]
[328723708,1717732242083,-159.77,0.00024647,3]
[328723709,1717732242092,-479.35,0.00024647,3]
[328723710,1717732242103,-269.16323318,0.00024655,2]
[328723711,1717732242112,-154.93802479,0.00024655,2]
[328723712,1717732242122,-216.1777469,0.00024655,2]
[328723713,1717732242134,-156.81545516,0.00024655,2]
[328723714,1717732242144,-156.86510884,0.00024655,2]
[328723715,1717732242154,-422.21281006,0.00024655,2]
[328723716,1717732242170,-337.2084562,0.00024655,2]
[328723717,1717732242179,-526.59536467,0.00024655,2]
[328723718,1717732242189,-194.96565459,0.00024655,2]
[328723719,1717732242198,-838.6785197,0.00024655,2]
[328723720,1717732242208,-193.69208131,0.00024655,2]
[328723721,1717732242220,-109.78957483,0.00024655,2]
[328723722,1717732242230,-580.35649517,0.00024655,2]
[328723745,1717732246835,-636.5613204,0.00024655,2]
[328723746,1717732681791,524.19655516,9.999e-05,2]
[328723747,1717732689517,552.23614437,9.999e-05,2]
[328723748,1717732691932,164.57151092,9.999e-05,2]
[328723749,1717732832153,181.94756605,9.999e-05,2]
[328723750,1717732834249,317.3700773,9.999e-05,2]
[328723751,1717732841697,154.93802479,9.999e-05,2]
[328723752,1717732848439,1155.40031062,9.999e-05,2]
[328723753,1717732857540,284.4592241,0.000137,2]
[328723754,1717732862787,515.43295454,9.999e-05,2]
[328723755,1717732881594,722.06198513,9.999e-05,2]
[328723756,1717732882230,927.1117103,9.999e-05,2]
[328723757,1717732901768,154.93802479,9.999e-05,2]
[328723758,1717732909826,154.93802479,9.999e-05,2]
[328723759,1717732922281,154.93802479,9.999e-05,2]
[328723760,1717733234185,-1982.90053047,0.0002189,2]
[328723761,1717733234208,-4419.78602518,0.0002189,2]
[328723763,1717733353125,-150.0,0.0001979,2]
[328723764,1717733353145,-3070.8095879,0.00020888,2]
[328723765,1717733353166,-10483.96462236,0.00020888,2]
[328723766,1717733353186,-2036.10483651,0.00020889,2]
[328723767,1717733353205,-290.040052,0.0002089,2]
[328723768,1717733353224,-2072.36485927,0.00021,2]
[328723769,1717733353243,-262.50587513,0.00021889,2]
[328723770,1717733353262,-647.05692188,0.00021889,2]
[328723771,1717733353280,-235.45733699,0.0002189,7]
[328723772,1717733353300,-607.37438796,0.0002189,2]
[328723773,1717733362186,-53923.12932872,0.0002189,2]
[328723774,1717733369104,-607.8019159,0.0002189,2]
[328723775,1717733369123,-225.09033307,0.0002189,2]
[328723776,1717733369143,-1914.709334,0.000219,2]
[328723777,1717733369164,-188.0,0.00022,2]
[328723780,1717733388665,216.74372078,0.0002189,2]
[328723907,1717733433872,-9.44994335,0.0002189,2]
[328723908,1717733433883,-188.0,0.00022192,2]
[328723909,1717733433894,-1914.70933396,0.00022564,2]
[328723910,1717733433906,-303.9746273,0.00022632,2]
[328723911,1717733433916,-28781.84580589,0.000228,2]
[328723919,1717733437822,-5405.23818738,0.000228,2]
[328724014,1717733443959,-8515.6328677,0.000228,2]
[328724054,1717733446077,-68518.9109896,0.000228,2]
[328724055,1717733446089,-188.0,0.00023014,2]
[328724056,1717733446101,-1914.70933396,0.00023228,2]
[328724057,1717733446112,-167.46533,0.00023385,2]
[328724058,1717733446123,-624.47825692,0.00023466,2]
[328724060,1717733446135,-1914.70933396,0.00023892,2]
[328724062,1717733446146,-189.0,0.00024164,2]
[328724064,1717733446157,-4236.94913646,0.00024226,2]
[328724066,1717733446168,-150.75634065,0.00024307,2]
[328724069,1717733446179,-20663.85669958,0.00024408,2]
[328724071,1717733446190,-151.80213944,0.0002441,3]
[328724073,1717733446201,-151.0,0.00024493,2]
[328724075,1717733446212,-356.990864,0.00024493,2]
[328724077,1717733446223,-356.990864,0.00024493,2]
[328724079,1717733446233,-166.666666,0.00024493,2]
[328724082,1717733446244,-153.0,0.00024548,2]
[328724084,1717733446255,-153.0,0.00024548,2]
[328724086,1717733446266,-425.0560651,0.00024548,2]
[328724089,1717733446284,-1914.70933396,0.00024556,2]
[328724092,1717733446304,-4253.15278805,0.00024557,2]
[328724094,1717733446318,-2000.0,0.00024557,2]
[328724097,1717733446332,-270.0,0.000246,2]
[328724100,1717733446346,-153.0,0.000246,2]
[328724102,1717733446360,-153.0,0.000246,2]
[328724104,1717733446373,-150.602997,0.000246,2]
[328724106,1717733446385,-1008.927157,0.000246,2]
[328724108,1717733446398,-620.22391285,0.00024639,2]
[328724111,1717733446410,-319.54,0.00024645,3]
[328724113,1717733446423,-488.96249109,0.00024654,2]
[328724115,1717733446436,-500.0,0.00024654,2]
[328724118,1717733446448,-500.0,0.00024654,2]
[328724120,1717733446460,-500.0,0.00024654,2]
[328724122,1717733446472,-500.0,0.00024654,2]
[328724124,1717733446484,-406.7566671,0.00024654,2]
[328724127,1717733446495,-242.77903621,0.00024654,2]
[328724129,1717733446507,-439.60840354,0.00024654,2]
[328724131,1717733446521,-500.0,0.00024654,2]
[328724133,1717733446534,-500.0,0.00024654,2]
[328724135,1717733446546,-526.14459198,0.00024654,2]
[328724138,1717733446558,-461.29051911,0.00024654,2]
[328724140,1717733446570,-500.0,0.00024654,2]
[328724142,1717733446581,-472.88232157,0.00024654,2]
[328724144,1717733446592,-500.0,0.00024654,2]
[328724146,1717733446605,-500.0,0.00024654,2]
[328724148,1717733446616,-500.0,0.00024654,2]
[328724151,1717733446628,-500.0,0.00024654,2]
[328724153,1717733446640,-500.0,0.00024654,2]
[328724155,1717733446651,-500.0,0.00024654,2]
[328724157,1717733446663,-500.0,0.00024654,2]
[328724159,1717733446674,-500.0,0.00024654,2]
[328724161,1717733446685,-500.0,0.00024654,2]
[328724163,1717733446696,-500.0,0.00024654,2]
[328724165,1717733446707,-500.0,0.00024654,2]
[328724168,1717733446718,-500.0,0.00024654,2]
[328724170,1717733446729,-500.0,0.00024654,2]
[328724172,1717733446741,-500.0,0.00024654,2]
[328724174,1717733446752,-500.0,0.00024654,2]
[328724176,1717733446764,-500.0,0.00024654,2]
[328724178,1717733446775,-500.0,0.00024654,2]
[328724181,1717733446786,-500.0,0.00024654,2]
[328724183,1717733446799,-500.0,0.00024654,2]
[328724185,1717733446811,-500.0,0.00024654,2]
[328724187,1717733446821,-500.0,0.00024654,2]
[328724189,1717733446831,-500.0,0.00024654,2]
[328724191,1717733446842,-500.0,0.00024654,2]
[328724194,1717733446852,-500.0,0.00024654,2]
[328724196,1717733446862,-500.0,0.00024654,2]
[328724198,1717733446871,-500.0,0.00024654,2]
[328724199,1717733446880,-500.0,0.00024654,2]
[328724201,1717733446889,-500.0,0.00024654,2]
[328724203,1717733446898,-500.0,0.00024654,2]
[328724205,1717733446908,-500.0,0.00024654,2]
[328724226,1717733447096,-500.0,0.00024654,2]
[328724229,1717733447110,-500.0,0.00024654,2]
[328724231,1717733447119,-500.0,0.00024654,2]
[328724233,1717733447128,-500.0,0.00024654,2]
[328724235,1717733447137,-500.0,0.00024654,2]
[328724237,1717733447147,-500.0,0.00024654,2]
[328724239,1717733447156,-500.0,0.00024654,2]
[328724241,1717733447165,-500.0,0.00024654,2]
[328724243,1717733447174,-500.0,0.00024654,2]
[328724245,1717733447183,-500.0,0.00024654,2]
[328724247,1717733447193,-630.0440206,0.00024654,2]
[328724249,1717733447202,-500.0,0.00024654,2]
[328724251,1717733447211,-208.24002311,0.00024655,2]
[328724253,1717733447220,-187.24695787,0.00024655,2]
[328724255,1717733447229,-252.25223279,0.00024655,2]
[328724256,1717733447238,-2547.48900794,0.00024655,2]
[328724259,1717733447247,-243.76398815,0.00024655,2]
[328724260,1717733447256,-155.04696386,0.00024655,2]
[328724262,1717733447265,-1354.21950592,0.00024655,2]
[328724264,1717733447275,-183.66233608,0.00024655,2]
[328724266,1717733447284,-12062.73356344,0.00024655,7]
[328724268,1717733447293,-13278.09998426,0.00024655,2]
[328724270,1717733447302,-660.20558504,0.00024655,2]
[328724272,1717733447312,-195.36330289,0.00024655,2]
[328724274,1717733447322,-267.1476299,0.00024655,2]
[328724276,1717733447330,-1025.52253387,0.00024655,2]
[328724278,1717733447339,-305.26070198,0.00024655,2]
[328724280,1717733447349,-764.37756913,0.00024655,2]
[328724282,1717733447359,-528.46564502,0.00024655,2]
[328724284,1717733447368,-571.50851756,0.00024655,2]
[328724286,1717733447377,-166.5872029,0.00024655,2]
[328724288,1717733447387,-590.36939172,0.00024655,2]
[328724290,1717733447396,-157.29959102,0.00024655,2]
[328724292,1717733447405,-157.42927759,0.00024655,2]
[328724294,1717733447415,-571.74027931,0.00024655,2]
[328724296,1717733447425,-697.7315899,0.00024655,2]
[328724298,1717733447434,-302.7340497,0.00024655,2]
[328724300,1717733447443,-278.62123653,0.00024655,2]
[328724302,1717733447454,-567.0499182,0.00024655,2]
[328724304,1717733447463,-154.95351395,0.00024655,2]
[328724306,1717733447473,-285.73408254,0.00024655,2]
[328724308,1717733447483,-155.89193003,0.00024655,2]
[328724310,1717733447492,-320.01080769,0.00024655,2]
[328724312,1717733447502,-183.86412453,0.00024655,2]
[328724314,1717733447512,-156.6002903,0.00024655,2]
[328724316,1717733447522,-272.3727093,0.00024655,2]
[328724317,1717733447534,-216.88401722,0.00024655,2]
[328724318,1717733447544,-477.39848846,0.00024655,2]
[328724319,1717733447555,-265.09095608,0.00024655,2]
[328724320,1717733447566,-723.13331172,0.00024655,2]
[328724321,1717733447575,-480.64149903,0.00024655,2]
[328724322,1717733447584,-163.52151159,0.00024655,2]
[328724323,1717733447594,-432.91007436,0.00024655,2]
[328724324,1717733447603,-724.75882808,0.00024655,2]
[328724325,1717733447612,-153.144744,0.00024655,2]
[328724326,1717733447622,-257.75619951,0.00024655,2]
[328724327,1717733447632,-151.0,0.00024655,2]
[328724328,1717733447641,-155.60975202,0.00024655,2]
[328724330,1717733447650,-222.22832804,0.00024655,2]
[328724332,1717733447659,-178.466567,0.00024655,2]
[328724334,1717733447669,-155.87763031,0.00024655,2]
[328724336,1717733447679,-3174.31661083,0.00024655,2]
[328724338,1717733447688,-1901.95956528,0.00024655,2]
[328724340,1717733447698,-19289.36611798,0.00024655,2]
[328724342,1717733447707,-151.0,0.00024655,2]
[328724344,1717733447716,-151.0,0.00024655,2]
[328724346,1717733447725,-151.0,0.00024655,2]
[328724348,1717733447735,-151.0,0.00024655,2]
[328724349,1717733447744,-151.0,0.00024655,2]
[328724350,1717733447753,-151.0,0.00024655,2]
[328724352,1717733447763,-151.0,0.00024655,2]
[328724354,1717733447772,-151.0,0.00024655,2]
[328724355,1717733447781,-540.47587303,0.00024655,2]
[328724356,1717733447790,-155.0,0.00024655,2]
[328724358,1717733447800,-461.8019537,0.00024655,2]
[328724360,1717733447809,-2647.35651139,0.00024655,2]
[328724362,1717733447818,-151.0,0.00024655,2]
[328724364,1717733447827,-155.226553,0.00024655,2]
[328724366,1717733447837,-151.0,0.00024655,2]
[328724368,1717733447847,-151.0,0.00024655,2]
[328724370,1717733447856,-151.0,0.00024655,2]
[328724371,1717733447865,-262.099115,0.00024655,2]
[328724373,1717733447874,-151.0,0.00024655,2]
[328724375,1717733447883,-48.95042276,0.00024655,2]
[328724378,1717733447897,-102.04957724,0.00024655,2]
[328724380,1717733447906,-151.0,0.00024655,2]
[328724381,1717733447916,-556.793806,0.00024655,2]
[328724383,1717733447925,-556.793806,0.00024655,2]
[328724385,1717733447934,-556.793806,0.00024655,2]
[328724387,1717733447944,-556.793806,0.00024655,2]
[328724389,1717733447953,-556.793806,0.00024655,2]
[328724391,1717733447962,-556.793806,0.00024655,2]
[328724393,1717733447971,-1986.8199551,0.00024655,2]
[328724395,1717733447981,-156.818835,0.00024655,2]
[328724397,1717733447990,-356.990864,0.00024655,2]
[328724399,1717733448000,-356.990864,0.00024655,2]
[328724401,1717733448009,-356.990864,0.00024655,2]
[328724403,1717733448019,-356.990864,0.00024655,2]
[328724405,1717733448028,-356.990864,0.00024655,2]
[328724407,1717733448037,-356.990864,0.00024655,2]
[328724409,1717733448046,-151.0,0.00024655,2]
[328724411,1717733448055,-151.0,0.00024655,2]
[328724412,1717733448065,-151.0,0.00024655,2]
[328724414,1717733448074,-203.773222,0.00024655,2]
[328724415,1717733448085,-203.773222,0.00024655,2]
[328724417,1717733448095,-203.773222,0.00024655,2]
[328724419,1717733448104,-203.773222,0.00024655,2]
[328724421,1717733448114,-203.773222,0.00024655,2]
[328724423,1717733448123,-203.773222,0.00024655,2]
[328724425,1717733448132,-151.0,0.00024655,2]
[328724426,1717733448141,-151.0,0.00024655,2]
[328724428,1717733448151,-151.0,0.00024655,2]
[328724430,1717733448161,-4513.22163451,0.00024655,2]
[328724431,1717733448170,-2039.96502499,0.00024655,2]
[328724432,1717733448180,-151.0,0.00024655,2]
[328724433,1717733448189,-151.0,0.00024655,2]
[328724434,1717733448199,-1854.15084258,0.00024655,2]
[328724435,1717733448208,-151.0,0.00024655,2]
[328724436,1717733448218,-2096.31581539,0.00024655,2]
[328724437,1717733448227,-15844.88491055,0.00024655,2]
[328724438,1717733448237,-151.0,0.00024655,2]
[328724439,1717733448246,-151.0,0.00024655,2]
[328724440,1717733448255,-151.0,0.00024655,2]
[328724441,1717733448265,-151.0,0.00024655,2]
[328724442,1717733448274,-151.0,0.00024655,2]
[328724443,1717733448284,-151.0,0.00024655,2]
[328724444,1717733448293,-151.0,0.00024655,2]
[328724445,1717733448303,-151.0,0.00024655,2]
[328724446,1717733448314,-207.456771,0.00024655,2]
[328724447,1717733448323,-456.932056,0.00024655,2]
[328724448,1717733448333,-456.932056,0.00024655,2]
[328724449,1717733448343,-456.932056,0.00024655,2]
[328724450,1717733448352,-456.932056,0.00024655,2]
[328724451,1717733448362,-151.0,0.00024655,2]
[328724452,1717733448372,-151.0,0.00024655,2]
[328724453,1717733448381,-10349.2546585,0.00024656,2]
[328724454,1717733448391,-266.00629984,0.00024656,2]
[328724455,1717733448400,-270.17465787,0.00024656,2]
[328724456,1717733448421,-189.15999981,0.00024656,2]
[328724457,1717733448431,-356.990864,0.00024656,2]
[328724458,1717733448441,-356.990864,0.00024656,2]
[328724459,1717733448450,-151.0,0.00024656,2]
[328724460,1717733448460,-203.773222,0.00024656,2]
[328724461,1717733448470,-203.773222,0.00024656,2]
[328724462,1717733448479,-151.0,0.00024656,2]
[328724463,1717733448489,-151.0,0.00024656,2]
[328724464,1717733448499,-258.715889,0.00024656,2]
[328724465,1717733448508,-151.0,0.00024656,2]
[328724466,1717733448520,-456.932056,0.00024656,2]
[328724467,1717733448532,-456.932056,0.00024656,2]
[328724468,1717733448542,-151.0,0.00024656,2]
[328724469,1717733448552,-7190.63125334,0.00024657,7]
[328724470,1717733448562,-599.76951542,0.00024657,2]
[328724471,1717733448572,-504.41749459,0.00024657,2]
[328724472,1717733448581,-500.0,0.00024657,2]
[328724473,1717733448590,-500.0,0.00024657,2]
[328724474,1717733448605,-500.0,0.00024657,2]
[328724475,1717733448615,-500.0,0.00024657,2]
[328724476,1717733448625,-500.0,0.00024657,2]
[328724477,1717733448635,-500.0,0.00024657,2]
[328724478,1717733448644,-500.0,0.00024657,2]
[328724479,1717733448653,-500.0,0.00024657,2]
[328724480,1717733448663,-500.0,0.00024657,2]
[328724481,1717733448672,-500.0,0.00024657,2]
[328724482,1717733448682,-500.0,0.00024657,2]
[328724483,1717733448692,-189.88933038,0.00024657,2]
[328724484,1717733448701,-500.0,0.00024657,2]
[328724485,1717733448712,-500.0,0.00024657,2]
[328724486,1717733448721,-500.0,0.00024657,2]
[328724487,1717733448731,-502.1736737,0.00024657,2]
[328724488,1717733448741,-524.4291051,0.00024657,2]
[328724489,1717733448750,-500.0,0.00024657,2]
[328724490,1717733448760,-500.0,0.00024657,2]
[328724491,1717733448769,-503.21469761,0.00024657,2]
[328724492,1717733448779,-500.0,0.00024657,2]
[328724493,1717733448789,-501.10612566,0.00024657,2]
[328724494,1717733448801,-500.0,0.00024657,2]
[328724495,1717733448812,-500.0,0.00024657,2]
[328724496,1717733448821,-500.0,0.00024657,2]
[328724497,1717733448832,-505.32990105,0.00024657,2]
[328724498,1717733448841,-500.0,0.00024657,2]
[328724499,1717733448851,-500.0,0.00024657,2]
[328724500,1717733448860,-500.0,0.00024657,2]
[328724501,1717733448870,-500.0,0.00024657,2]
[328724502,1717733448880,-500.0,0.00024657,2]
[328724503,1717733448889,-500.0,0.00024657,2]
[328724504,1717733448899,-500.0,0.00024657,2]
[328724505,1717733448908,-658.48,0.00024657,2]
[328724506,1717733448918,-500.0,0.00024657,2]
[328724507,1717733448928,-528.27270699,0.00024657,2]
[328724508,1717733448938,-557.72091886,0.00024657,2]
[328724509,1717733448947,-500.0,0.00024657,2]
[328724510,1717733448956,-503.8922234,0.00024657,2]
[328724511,1717733448965,-500.0,0.00024657,2]
[328724512,1717733448974,-500.0,0.00024657,2]
[328724513,1717733448984,-500.0,0.00024657,2]
[328724514,1717733448994,-500.0,0.00024657,2]
[328724515,1717733449003,-500.0,0.00024657,2]
[328724516,1717733449012,-500.0,0.00024657,2]
[328724517,1717733449021,-500.71014689,0.00024657,2]
[328724518,1717733449030,-504.84395604,0.00024657,2]
[328724519,1717733449040,-1005.56012954,0.00024657,2]
[328724520,1717733449049,-501.31505205,0.00024657,2]
[328724521,1717733449059,-500.0,0.00024657,2]
[328724522,1717733449069,-500.0,0.00024657,2]
[328724523,1717733449079,-500.0,0.00024657,2]
[328724524,1717733449088,-500.0,0.00024657,2]
[328724525,1717733449098,-500.0,0.00024657,2]
[328724526,1717733449107,-506.16676536,0.00024657,2]
[328724527,1717733449116,-500.0,0.00024657,2]
[328724528,1717733449126,-500.0,0.00024657,2]
[328724529,1717733449136,-500.0,0.00024657,2]
[328724530,1717733449147,-500.0,0.00024657,2]
[328724531,1717733449157,-501.2253851,0.00024657,2]
[328724532,1717733449167,-500.0,0.00024657,2]
[328724533,1717733449177,-500.0,0.00024657,2]
[328724534,1717733449188,-500.0,0.00024657,2]
[328724535,1717733449197,-523.814162,0.00024657,2]
[328724536,1717733449206,-500.0,0.00024657,2]
[328724537,1717733449216,-373.21364555,0.00024657,2]
[328724538,1717733449225,-500.0,0.00024657,2]
[328724539,1717733449235,-525.14754655,0.00024657,2]
[328724540,1717733449245,-500.0,0.00024657,2]
[328724541,1717733449256,-500.0,0.00024657,2]
[328724542,1717733449266,-500.0,0.00024657,2]
[328724543,1717733449276,-500.0,0.00024657,2]
[328724544,1717733449285,-500.0,0.00024657,2]
[328724545,1717733449295,-500.0,0.00024657,2]
[328724546,1717733449306,-500.0,0.00024657,2]
[328724547,1717733449318,-539.40726166,0.00024657,2]
[328724548,1717733449327,-505.47250215,0.00024657,2]
[328724549,1717733449336,-500.0,0.00024657,2]
[328724550,1717733449346,-500.0,0.00024657,2]
[328724551,1717733449355,-500.0,0.00024657,2]
[328724552,1717733449365,-687.47,0.00024657,2]
[328724553,1717733449376,-289.21672722,0.00024657,2]
[328724554,1717733449385,-500.0,0.00024657,2]
[328724555,1717733449395,-151.0,0.00024657,2]
[328724556,1717733449404,-151.0,0.00024657,2]
[328724557,1717733449415,-151.0,0.00024657,2]
[328724558,1717733449425,-151.0,0.00024657,2]
[328724559,1717733449435,-151.0,0.00024657,2]
[328724560,1717733449445,-209.590694,0.00024657,2]
[328724561,1717733449455,-153.218367,0.00024657,2]
[328724562,1717733449465,-508.04076887,0.00024657,2]
[328724563,1717733449475,-500.0,0.00024657,2]
[328724564,1717733449485,-505.3035352,0.00024657,2]
[328724565,1717733449494,-517.01868288,0.00024657,2]
[328724566,1717733449504,-500.0,0.00024657,2]
[328724567,1717733449514,-604.18052231,0.00024657,2]
[328724568,1717733449528,-500.0,0.00024657,2]
[328724569,1717733449540,-500.0,0.00024657,2]
[328724570,1717733449550,-758.44,0.00024657,2]
[328724571,1717733449559,-500.0,0.00024657,2]
[328724572,1717733449569,-504.78110733,0.00024657,2]
[328724573,1717733449578,-500.0,0.00024657,2]
[328724574,1717733449587,-500.0,0.00024657,2]
[328724575,1717733449596,-500.0,0.00024657,2]
[328724576,1717733449605,-508.46971588,0.00024657,2]
[328724577,1717733449614,-500.0,0.00024657,2]
[328724578,1717733449623,-500.0,0.00024657,2]
[328724579,1717733449633,-201.72247781,0.00024657,2]
[328724580,1717733449642,-527.10926835,0.00024657,2]
[328724581,1717733449652,-500.0,0.00024657,2]
[328724582,1717733449662,-500.0,0.00024657,2]
[328724583,1717733449672,-500.0,0.00024657,2]
[328724584,1717733449682,-500.0,0.00024657,2]
[328724585,1717733449691,-500.0,0.00024657,2]
[328724586,1717733449702,-500.0,0.00024657,2]
[328724587,1717733449711,-500.0,0.00024657,2]
[328724588,1717733449721,-510.92671129,0.00024657,2]
[328724589,1717733449731,-500.0,0.00024657,2]
[328724590,1717733449741,-200.0,0.00024657,2]
[328724591,1717733449750,-500.0,0.00024657,2]
[328724592,1717733449760,-500.0,0.00024657,2]
[328724593,1717733449770,-503.76,0.00024657,2]
[328724594,1717733449781,-348.6989816,0.00024657,2]
[328724595,1717733449790,-500.0,0.00024657,2]
[328724596,1717733449800,-151.0,0.00024657,2]
[328724597,1717733449809,-151.0,0.00024657,2]
[328724598,1717733449820,-151.0,0.00024657,2]
[328724599,1717733449830,-205.468978,0.00024657,2]
[328724600,1717733449839,-153.87496,0.00024657,2]
[328724601,1717733449848,-513.3512292,0.00024657,2]
[328724602,1717733449858,-500.0,0.00024657,2]
[328724603,1717733449867,-512.47069407,0.00024657,2]
[328724604,1717733449877,-500.0,0.00024657,2]
[328724605,1717733449886,-505.40403616,0.00024657,2]
[328724606,1717733449896,-508.31464675,0.00024657,2]
[328724607,1717733449905,-503.55501632,0.00024657,2]
[328724608,1717733449915,-500.0,0.00024657,2]
[328724609,1717733449925,-500.0,0.00024657,2]
[328724610,1717733449934,-500.0,0.00024657,2]
[328724611,1717733449944,-454.38886498,0.00024657,2]
[328724621,1717734116920,411.42673703,9.999e-05,2]
[328724622,1717734431548,-2789.1393778,0.00017222,2]
[328724623,1717734431570,-2120.4704466,0.00017448,2]
[328724624,1717734431592,-2409.63345823,0.00017448,2]
[328724625,1717734431614,-2112.86517201,0.00017449,2]
[328724626,1717734431635,-252.32412823,0.00017449,2]
[328724627,1717734431656,-601.208992,0.0001745,2]
[328724628,1717734431677,-2812.99414958,0.00017487,2]
[328724629,1717734431698,-1901.36427555,0.00017487,2]